bitfinex-derivatives/quotes_BTCF0:USTF0_20250609
["timestamp","ask_amount","ask_price","bid_price","bid_amount"]
[1749465103327,1.87673395,107060.0,107050.0,0.59095804]
[1749465103521,1.7533117,107060.0,107050.0,0.59095804]
[1749465103726,1.86197077,107060.0,107050.0,0.59095804]
[1749465103929,2.04467077,107060.0,107050.0,0.59095804]
[1749465104321,2.04467077,107060.0,107050.0,0.61430804]
[1749465105229,1.92084852,107060.0,107050.0,0.61430804]
[1749465105432,1.92084852,107060.0,107050.0,0.71430804]
[1749465105824,2.0479599,107060.0,107050.0,0.71430804]
[1749465106323,1.92084852,107060.0,107050.0,0.71430804]
[1749465106528,2.0479599,107060.0,107050.0,0.71430804]
[1749465107028,1.92084852,107060.0,107050.0,0.71430804]
[1749465107229,2.0479599,107060.0,107050.0,0.71430804]
[1749465107430,2.0479599,107060.0,107050.0,0.61430804]
[1749465107630,2.0479599,107060.0,107050.0,0.71430804]
[1749465108023,2.1413679,107060.0,107050.0,0.54100033]
[1749465108224,2.01425652,107060.0,107050.0,0.54100033]
[1749465108426,1.4534399,107060.0,107050.0,0.64100033]
[1749465108730,2.0473199,107060.0,107050.0,0.64100033]
[1749465108928,2.0469199,107060.0,107050.0,0.64100033]
[1749465109132,1.92020852,107060.0,107050.0,0.64100033]
[1749465109328,2.0473199,107060.0,107050.0,0.54100033]
[1749465109927,2.0473199,107060.0,107050.0,0.64100033]
[1749465110629,2.0473199,107060.0,107050.0,0.71664177]
[1749465114732,1.14362852,107060.0,107050.0,0.81002177]
[1749465114936,1.5631917,107060.0,107050.0,1.33135857]
[1749465115141,0.90908,107060.0,107050.0,1.45846995]
[1749465115337,1.36171752,107060.0,107050.0,1.45846995]
[1749465115538,1.36131752,107060.0,107050.0,1.33135857]
[1749465115838,1.54842922,107060.0,107050.0,1.33135857]
[1749465116027,0.42348,107060.0,107050.0,1.45846995]
[1749465116227,0.12338,107060.0,107050.0,1.92395737]
[1749465116436,0.5334,107060.0,107050.0,1.92395737]
[1749465116740,0.5338,107060.0,107050.0,1.92395737]
[1749465119038,0.5334,107060.0,107050.0,1.92395737]
[1749465119237,0.0004,107060.0,107050.0,1.92395737]
[1749465119435,0.58892,107060.0,107050.0,1.92395737]
[1749465119634,0.58932,107060.0,107050.0,1.92395737]
[1749465121137,0.58932,107060.0,107050.0,1.79684599]
[1749465121340,0.58932,107060.0,107050.0,1.92395737]
[1749465122438,0.0004,107060.0,107050.0,1.92395737]
[1749465122632,0.00014027,107070.0,107060.0,0.001]
[1749465122932,1.92324,107100.0,107080.0,0.201]
[1749465123138,2.10913608,107100.0,107090.0,0.77378]
[1749465123335,2.19025608,107100.0,107090.0,1.10378]
[1749465123536,2.65801608,107100.0,107090.0,1.24311294]
[1749465123741,2.65841608,107100.0,107090.0,1.33649234]
[1749465124335,2.47177418,107100.0,107090.0,1.46360372]
[1749465124535,2.47173418,107100.0,107090.0,1.56329198]
[1749465124743,2.66237608,107100.0,107090.0,1.66329198]
[1749465124948,2.66197608,107100.0,107090.0,1.66329198]
[1749465125337,2.65937608,107100.0,107090.0,1.66329198]
[1749465125646,2.45957813,107100.0,107090.0,1.5361806]
[1749465125947,2.45957813,107100.0,107090.0,1.66329198]
[1749465126336,0.49085813,107100.0,107090.0,1.68663198]
[1749465126543,0.95853813,107100.0,107090.0,2.04750694]
[1749465127047,0.95813813,107100.0,107090.0,2.04750694]
[1749465127246,0.95853813,107100.0,107090.0,2.04750694]
[1749465128648,0.95853813,107100.0,107090.0,2.33568983]
[1749465129351,0.95853813,107100.0,107090.0,2.04750694]
[1749465130150,1.14518003,107100.0,107090.0,1.92039556]
[1749465130351,0.95853813,107100.0,107090.0,1.92039556]
[1749465130652,0.91853813,107100.0,107090.0,1.92139556]
[1749465130853,0.91853813,107100.0,107090.0,1.56059556]
[1749465131145,1.10518003,107100.0,107090.0,0.97919556]
[1749465131351,2.17249141,107100.0,107090.0,0.7861273]
[1749465131946,2.04538003,107100.0,107090.0,0.64679436]
[1749465132144,2.17249141,107100.0,107090.0,0.64679436]
[1749465133249,2.04538003,107100.0,107090.0,0.64679436]
[1749465136553,2.32798003,107100.0,107090.0,0.64679436]
[1749465137556,2.28798003,107100.0,107090.0,0.64679436]
[1749465138155,2.64878003,107100.0,107090.0,0.64679436]
[1749465139056,2.77589141,107100.0,107090.0,0.64679436]
[1749465139746,2.64878003,107100.0,107090.0,0.64679436]
[1749465139949,2.77589141,107100.0,107090.0,0.64679436]
[1749465142958,2.64878003,107100.0,107090.0,0.64679436]
[1749465143161,2.77589141,107100.0,107090.0,0.64679436]
[1749465144659,2.73589141,107100.0,107090.0,0.64679436]
[1749465144964,2.60878003,107100.0,107090.0,0.64679436]
[1749465145351,2.71717254,107100.0,107090.0,0.64679436]
[1749465148064,2.60878003,107100.0,107090.0,0.64679436]
[1749465148260,2.71717254,107100.0,107090.0,0.64436783]
[1749465149765,2.70201385,107100.0,107090.0,0.64436783]
[1749465151667,2.66201385,107100.0,107090.0,0.64436783]
[1749465152457,2.07321385,107100.0,107090.0,0.64436783]
[1749465152760,2.66173385,107100.0,107090.0,0.64436783]
[1749465153361,2.37913385,107100.0,107090.0,0.64436783]
[1749465153562,2.47250985,107100.0,107090.0,0.40297692]
[1749465153864,2.47250985,107100.0,107090.0,0.19626598]
[1749465154063,2.36411734,107100.0,107090.0,0.42079436]
[1749465154265,2.47250985,107100.0,107090.0,0.42079436]
[1749465154867,2.36411734,107100.0,107090.0,0.42079436]
[1749465155067,2.47250985,107100.0,107090.0,0.4105947]
[1749465155266,2.47250985,107100.0,107090.0,0.3985947]
[1749465155567,2.47250985,107100.0,107090.0,0.4725947]
[1749465155769,2.47250985,107100.0,107090.0,0.45908341]
[1749465156369,2.47250985,107100.0,107090.0,0.35908341]
[1749465156570,2.47250985,107100.0,107090.0,0.24567944]
[1749465156770,2.47250985,107100.0,107090.0,0.33405448]
[1749465157068,2.47250985,107100.0,107090.0,0.31205448]
[1749465157369,2.47250985,107100.0,107090.0,0.41205448]
[1749465157572,2.47250985,107100.0,107090.0,0.41216674]
[1749465158671,2.43250985,107100.0,107090.0,0.41216674]
[1749465159575,2.43250985,107100.0,107090.0,0.23736821]
[1749465159775,2.43250985,107100.0,107090.0,0.4654873]
[1749465161471,2.4173498,107100.0,107090.0,0.4654873]
[1749465162378,2.4173498,107100.0,107090.0,0.45898967]
[1749465162671,2.4173498,107100.0,107090.0,0.37096321]
[1749465162977,2.4173498,107100.0,107090.0,0.46433825]
[1749465163178,2.4173498,107100.0,107090.0,0.42134825]
[1749465163377,2.30895729,107100.0,107090.0,0.42134825]
[1749465163582,2.4173498,107100.0,107090.0,0.42141774]
[1749465164077,2.30895729,107100.0,107090.0,0.42141774]
[1749465164273,2.4173498,107100.0,107090.0,0.42141774]
[1749465164474,2.4173498,107100.0,107090.0,0.41641774]
[1749465164868,1.8288298,107100.0,107090.0,0.41141774]
[1749465165073,2.1256538,107100.0,107090.0,0.41141774]
[1749465165473,2.01686129,107100.0,107090.0,0.39927522]
[1749465165681,2.1256538,107100.0,107090.0,0.49344453]
[1749465165978,2.0856538,107100.0,107090.0,0.49750113]
[1749465167779,1.00766129,107100.0,107090.0,0.67790113]
[1749465167980,1.7044138,107100.0,107090.0,0.86474453]
[1749465168575,1.7040138,107100.0,107090.0,0.86474453]
[1749465168773,1.7044138,107100.0,107090.0,0.86474453]
[1749465169474,1.8997138,107100.0,107090.0,0.86474453]
[1749465171379,1.88455526,107100.0,107090.0,0.86474453]
[1749465172186,1.68925526,107100.0,107090.0,0.95812453]
[1749465172388,1.58086275,107100.0,107090.0,0.95812453]
[1749465172686,1.68925526,107100.0,107090.0,0.95812453]
[1749465172890,1.64925526,107100.0,107090.0,0.95812453]
[1749465173690,1.64925526,107100.0,107090.0,0.86474453]
[1749465173985,1.64925526,107100.0,107090.0,0.95812453]
[1749465174890,1.93185526,107100.0,107090.0,0.95812453]
[1749465178484,2.11985526,107100.0,107090.0,0.95812453]
[1749465178887,2.11985526,107100.0,107090.0,0.76722453]
[1749465179189,2.31785526,107100.0,107090.0,0.76722453]
[1749465179998,2.27785526,107100.0,107090.0,0.76722453]
[1749465180887,2.27785526,107100.0,107090.0,0.67384453]
[1749465181090,2.27785526,107100.0,107090.0,0.57384453]
[1749465181285,2.1676019,107100.0,107090.0,0.57384453]
[1749465181593,2.68585635,107100.0,107090.0,0.57384453]
[1749465182391,2.68585635,107100.0,107090.0,0.39344453]
[1749465182592,2.68585635,107100.0,107090.0,0.32294453]
[1749465182792,2.68585635,107100.0,107090.0,0.31309547]
[1749465183194,2.68585635,107100.0,107090.0,0.29487398]
[1749465183395,2.68585635,107100.0,107090.0,0.38584902]
[1749465183993,2.40325635,107100.0,107090.0,0.16507371]
[1749465184195,2.40325635,107100.0,107090.0,0.12581531]
[1749465184497,2.40325635,107100.0,107090.0,0.40348393]
[1749465184898,2.40325635,107100.0,107090.0,0.35684639]
[1749465185100,2.40325635,107100.0,107090.0,0.31020885]
[1749465185298,2.40325635,107100.0,107090.0,0.19457639]
[1749465185604,2.40325635,107100.0,107090.0,0.09337504]
[1749465185807,2.40325635,107100.0,107090.0,0.41337504]
[1749465185994,2.29486384,107100.0,107090.0,0.41337504]
[1749465186194,2.40325635,107100.0,107090.0,0.41346063]
[1749465187801,2.36325635,107100.0,107090.0,0.41346063]
[1749465188002,2.36325635,107100.0,107090.0,0.403548]
[1749465188994,2.36325635,107100.0,107090.0,0.39951308]
[1749465189195,2.36325635,107100.0,107090.0,0.35551308]
[1749465190592,2.36325635,107100.0,107090.0,0.35043184]
[1749465190996,1.78754384,107100.0,107090.0,0.31115184]
[1749465191196,2.36289635,107100.0,107090.0,0.40165688]
[1749465192399,0.85734384,107100.0,107090.0,0.48903688]
[1749465192699,0.85734384,107100.0,107090.0,1.08912939]
[1749465192894,1.44470384,107100.0,107090.0,1.18043688]
[1749465193095,1.42994618,107100.0,107090.0,1.18043688]
[1749465193296,0.70834618,107100.0,107090.0,1.18043688]
[1749465193499,0.70834618,107100.0,107090.0,1.46861977]
[1749465193893,0.70794618,107100.0,107090.0,1.46861977]
[1749465194101,0.70834618,107100.0,107090.0,1.46861977]
[1749465194799,0.12058618,107100.0,107090.0,1.60938947]
[1749465194996,0.66790618,107100.0,107090.0,1.60938947]
[1749465195200,0.66830618,107100.0,107090.0,1.71778198]
[1749465195406,0.08058618,107100.0,107090.0,1.71778198]
[1749465195705,0.66830618,107100.0,107090.0,1.71778198]
[1749465196006,0.66790618,107100.0,107090.0,1.60938947]
[1749465196204,0.66830618,107100.0,107090.0,1.60938947]
[1749465198105,0.66830618,107100.0,107090.0,1.81165551]
[1749465198507,0.66830618,107100.0,107090.0,1.52347262]
[1749465199599,2.16830618,107100.0,107090.0,1.52347262]
[1749465200000,2.63749869,107100.0,107090.0,1.52347262]
[1749465200206,2.27669869,107100.0,107090.0,1.52347262]
[1749465200502,2.63749869,107100.0,107090.0,1.42347262]
[1749465200707,2.63749869,107100.0,107090.0,1.22377262]
[1749465200708,2.83599869,107100.0,107090.0,1.22377262]
[1749465201105,2.72760618,107100.0,107090.0,1.32377262]
[1749465201408,2.83599869,107100.0,107090.0,1.32377262]
[1749465202009,2.94245441,107100.0,107090.0,1.32377262]
[1749465202309,2.2463419,107100.0,107090.0,1.32377262]
[1749465202516,2.6350819,107100.0,107090.0,1.32377262]
[1749465202715,2.74387441,107100.0,107090.0,1.32377262]
[1749465202919,2.74387441,107100.0,107090.0,1.50757262]
[1749465203108,2.74387441,107100.0,107090.0,1.40757262]
[1749465203303,1.42717441,107100.0,107090.0,1.59348947]
[1749465203505,1.62177441,107100.0,107090.0,0.8733984]
[1749465203709,1.21433441,107100.0,107090.0,0.60309839]
[1749465204011,1.80197441,107100.0,107090.0,0.71976213]
[1749465204312,1.80197441,107100.0,107090.0,0.17403]
[1749465204612,1.80197441,107100.0,107090.0,0.22140504]
[1749465204912,1.80197441,107100.0,107090.0,0.29611242]
[1749465205311,1.80197441,107100.0,107090.0,0.30510026]
[1749465205615,1.80197441,107100.0,107090.0,0.27120368]
[1749465206111,1.80197441,107100.0,107090.0,0.39348242]
[1749465206702,1.21433441,107100.0,107090.0,0.39348242]
[1749465206919,1.80193441,107100.0,107090.0,0.39348242]
[1749465208209,1.6935419,107100.0,107090.0,0.23308242]
[1749465208513,1.80193441,107100.0,107090.0,0.30225746]
[1749465209114,1.76193441,107100.0,107090.0,0.302349]
[1749465210207,1.6535419,107100.0,107090.0,0.302349]
[1749465210407,1.76193441,107100.0,107090.0,0.302349]
[1749465210711,1.6535419,107100.0,107090.0,0.302349]
[1749465210909,1.76169441,107100.0,107090.0,0.402349]
[1749465211116,1.76129441,107100.0,107090.0,0.402349]
[1749465211308,1.6533019,107100.0,107090.0,0.402349]
[1749465211513,1.76169441,107100.0,107090.0,0.302349]
[1749465211711,1.0659419,107100.0,107090.0,0.302349]
[1749465211910,1.76169441,107100.0,107090.0,0.395729]
[1749465213609,1.6533019,107100.0,107090.0,0.395729]
[1749465213913,1.76169441,107100.0,107090.0,0.395729]
[1749465214915,1.6533019,107100.0,107090.0,0.395729]
[1749465215416,1.76169441,107100.0,107090.0,0.395729]
[1749465216205,1.72169441,107100.0,107090.0,0.395729]
[1749465216409,2.14485441,107100.0,107090.0,0.395729]
[1749465220714,2.0364619,107100.0,107090.0,0.39346658]
[1749465220915,1.67809441,107100.0,107090.0,0.37146658]
[1749465221116,2.14477441,107100.0,107090.0,0.31246658]
[1749465222814,2.14477441,107100.0,107090.0,0.39735272]
[1749465223121,2.0896146,107100.0,107090.0,0.49072776]
[1749465223518,1.42316209,107100.0,107090.0,0.72554377]
[1749465223721,1.42316209,107100.0,107090.0,1.28914377]
[1749465223907,1.5311546,107100.0,107090.0,1.28925731]
[1749465224112,1.5315546,107100.0,107090.0,1.28925731]
[1749465225220,0.9442346,107100.0,107090.0,1.28925731]
[1749465225521,1.5314746,107100.0,107090.0,1.28925731]
[1749465225722,1.5314746,107100.0,107090.0,1.49125399]
[1749465226117,1.5314746,107100.0,107090.0,1.39025399]
[1749465226317,1.7114746,107100.0,107090.0,1.10587399]
[1749465226618,2.0993746,107100.0,107090.0,0.6749637]
[1749465226923,2.0993746,107100.0,107090.0,0.67886526]
[1749465227110,2.0993746,107100.0,107090.0,0.65271846]
[1749465227315,2.0993746,107100.0,107090.0,0.52347421]
[1749465227514,2.0993746,107100.0,107090.0,0.32136486]
[1749465227722,2.0993746,107100.0,107090.0,0.36903569]
[1749465227921,1.99098209,107100.0,107090.0,0.15558124]
[1749465228123,2.0993746,107100.0,107090.0,0.32121387]
[1749465228420,2.0993746,107100.0,107090.0,0.54561431]
[1749465228613,1.99098209,107100.0,107090.0,0.54561431]
[1749465228815,2.0993746,107100.0,107090.0,0.54561431]
[1749465229421,2.0993746,107100.0,107090.0,0.46944185]
[1749465229823,2.0993746,107100.0,107090.0,0.46607185]
[1749465230021,2.0993746,107100.0,107090.0,0.44717185]
[1749465230319,0.1866858,107070.0,107060.0,1.1225105]
[1749465230616,1.24303831,107070.0,107060.0,1.15132217]
[1749465230816,1.82183831,107070.0,107060.0,1.15132217]
[1749465231019,1.82183831,107070.0,107060.0,1.21652337]
[1749465231223,1.82194831,107070.0,107060.0,1.06138267]
[1749465231624,1.82194831,107070.0,107060.0,1.06538267]
[1749465232017,1.82194831,107070.0,107060.0,1.0218378]
[1749465232617,1.82194831,107070.0,107060.0,1.0188378]
[1749465233328,1.80678509,107070.0,107060.0,1.0158378]
[1749465234526,1.80678509,107070.0,107060.0,0.9348378]
[1749465234527,1.82588211,107070.0,107060.0,0.9348378]
[1749465235024,1.80678509,107070.0,107060.0,0.65096132]
[1749465235221,1.80678509,107070.0,107060.0,0.51696132]
[1749465235621,1.80678509,107070.0,107060.0,0.44801132]
[1749465235929,1.80678509,107070.0,107060.0,0.41150636]
[1749465237128,1.80678509,107070.0,107060.0,0.25887284]
[1749465237129,1.8255512,107070.0,107060.0,0.25887284]
[1749465237524,1.8255512,107070.0,107060.0,0.17587284]
[1749465237722,1.80678509,107070.0,107060.0,0.17587284]
[1749465238323,1.80678509,107070.0,107060.0,0.26217284]
[1749465239125,1.80678509,107070.0,107060.0,0.18477284]
[1749465240633,1.69819258,107070.0,107060.0,0.18477284]
[1749465240824,1.11939258,107070.0,107060.0,0.28477284]
[1749465241128,0.7741158,107070.0,107060.0,1.22177284]
[1749465241327,0.88250831,107070.0,107060.0,0.86097284]
[1749465241526,0.88210831,107070.0,107060.0,0.76097284]
[1749465241727,0.88210831,107070.0,107060.0,0.86097284]
[1749465241728,0.88250831,107070.0,107060.0,0.86097284]
[1749465242234,0.7741158,107070.0,107060.0,0.86097284]
[1749465242423,0.88250831,107070.0,107060.0,0.86097284]
[1749465243235,0.86734617,107070.0,107060.0,0.86097284]
[1749465243831,0.17203366,107070.0,107060.0,0.86097284]
[1749465244027,0.1867207,107050.0,107040.0,0.07602008]
[1749465244335,1.66607321,107050.0,107040.0,0.3678]
[1749465244632,1.66607321,107050.0,107040.0,0.4612012]
[1749465244934,1.66647321,107050.0,107040.0,0.4612012]
[1749465245130,1.66647321,107050.0,107040.0,0.46127756]
[1749465245432,1.66647321,107050.0,107040.0,0.46427756]
[1749465246129,1.66647321,107050.0,107040.0,0.56427756]
[1749465246324,1.66647321,107050.0,107040.0,0.46427756]
[1749465246530,1.66647321,107050.0,107040.0,0.56427756]
[1749465246932,1.85127321,107050.0,107040.0,0.56727756]
[1749465247937,1.85127321,107050.0,107040.0,0.75087756]
[1749465248435,1.89049499,107050.0,107040.0,0.65087756]
[1749465249035,1.89049499,107050.0,107040.0,0.75087756]
[1749465251736,0.64770178,107050.0,107040.0,1.13942387]
[1749465251934,0.64770178,107050.0,107040.0,1.98115004]
[1749465251935,1.23606208,107050.0,107040.0,1.98115004]
[1749465252138,1.34485459,107050.0,107040.0,1.34019624]
[1749465252335,0.75801459,107050.0,107040.0,0.99052021]
[1749465252543,1.70565459,107050.0,107040.0,0.89052021]
[1749465252834,1.70565459,107050.0,107040.0,0.19947756]
[1749465253038,2.07195459,107050.0,107040.0,0.19947756]
[1749465256342,0.1867376,107040.0,107030.0,0.00014027]
[1749465256536,1.3054557,107040.0,107030.0,0.00014027]
[1749465256843,1.3054557,107040.0,107030.0,0.09355892]
[1749465257246,1.3054557,107040.0,107030.0,0.09367202]
[1749465257741,1.3054557,107040.0,107030.0,0.09867202]
[1749465258649,1.08867068,107040.0,107030.0,0.09867202]
[1749465258943,1.3054557,107040.0,107030.0,0.10267202]
[1749465263853,1.3054557,107040.0,107030.0,0.04360182]
[1749465264055,1.3054557,107040.0,107030.0,2e-08]
[1749465264351,1.3054557,107040.0,107010.0,0.3906]
[1749465264352,0.1867724,107020.0,107010.0,0.3906]
[1749465264650,1.1348319,107020.0,107010.0,0.39035025]
[1749465264842,1.24322441,107020.0,107010.0,0.66697763]
[1749465265046,1.24322441,107020.0,107010.0,0.66705567]
[1749465266048,1.24322441,107020.0,107010.0,0.67805567]
[1749465266448,1.22805514,107020.0,107010.0,0.67805567]
[1749465266849,1.42505514,107020.0,107010.0,0.67805567]
[1749465267050,1.40381816,107020.0,107010.0,0.67805567]
[1749465267354,1.59521816,107020.0,107010.0,0.67805567]
[1749465267654,1.59521816,107020.0,107010.0,0.49485567]
[1749465267856,1.79141816,107020.0,107010.0,0.10450542]
[1749465270162,1.8104748,107020.0,107010.0,0.10450542]
[1749465270566,1.8104748,107020.0,107000.0,0.00014027]
[1749465270567,0.1867899,107010.0,107000.0,0.00014027]
[1749465270866,1.45322241,107010.0,107000.0,0.00014027]
[1749465271069,1.45322241,107010.0,107000.0,0.09359384]
[1749465271070,1.45347216,107010.0,107000.0,0.09359384]
[1749465271468,1.45347216,107010.0,107000.0,0.09370733]
[1749465272174,1.45347216,107010.0,107000.0,0.09870733]
[1749465272570,1.45347216,107010.0,107000.0,0.10370733]
[1749465272773,2.03983216,107010.0,107000.0,0.10370733]
[1749465272967,2.14822467,107010.0,107000.0,0.10370733]
[1749465273162,2.03983216,107010.0,107000.0,0.10370733]
[1749465273369,2.0589147,107010.0,107000.0,0.10370733]
[1749465274976,2.03983216,107010.0,107000.0,0.10370733]
[1749465275673,2.28243216,107010.0,107000.0,0.10370733]
[1749465277377,0.1868597,106970.0,106960.0,0.5943777]
[1749465277674,1.25798341,106970.0,106960.0,1.14032319]
[1749465277871,1.25798341,106970.0,106960.0,1.43678857]
[1749465278070,1.25798341,106970.0,106960.0,1.6989643]
[1749465278276,1.25798341,106970.0,106960.0,1.4489643]
[1749465278471,1.25798341,106970.0,106960.0,1.44905322]
[1749465278673,1.25898341,106970.0,106960.0,1.83515322]
[1749465278979,1.25898341,106970.0,106960.0,1.83715322]
[1749465279179,0.5642709,106970.0,106960.0,1.83715322]
[1749465279476,1.1549909,106970.0,106960.0,1.82415322]
[1749465279678,1.1599909,106970.0,106960.0,1.82415322]
[1749465279879,1.26838341,106970.0,106960.0,1.73066522]
[1749465280077,1.1599909,106970.0,106960.0,1.73066522]
[1749465280480,1.1579909,106970.0,106960.0,1.73066522]
[1749465280679,0.5716709,106970.0,106960.0,1.73066522]
[1749465280873,1.1579509,106970.0,106960.0,1.73066522]
[1749465281178,0.5716709,106970.0,106960.0,1.73066522]
[1749465281379,1.19107986,106970.0,106960.0,1.73066522]
[1749465281683,1.19107986,106970.0,106960.0,1.73166522]
[1749465281986,0.46529871,106970.0,106960.0,2.18354573]
[1749465282173,0.43216975,106970.0,106960.0,2.64643944]
[1749465282481,1.01800975,106970.0,106960.0,2.64643944]
[1749465282680,1.01840975,106970.0,106960.0,2.64643944]
[1749465282885,1.05169388,106970.0,106960.0,2.64643944]
[1749465283182,1.05169388,106970.0,106960.0,2.62775944]
[1749465283477,0.46545388,106970.0,106960.0,2.62775944]
[1749465283678,0.00014027,106980.0,106960.0,2.54927475]
[1749465283879,0.750494,107000.0,106990.0,0.1868247]
[1749465284074,1.33561527,107000.0,106990.0,0.7476247]
[1749465284270,1.33561527,107000.0,106990.0,1.06915695]
[1749465284485,1.33561527,107000.0,106990.0,0.80184547]
[1749465284678,1.33561527,107000.0,106990.0,1.16264547]
[1749465285075,0.54376,107000.0,106990.0,1.46450198]
[1749465285279,1.1965672,107000.0,106990.0,1.56453976]
[1749465285478,1.1969672,107000.0,106990.0,1.56453976]
[1749465285785,1.02716,107000.0,106990.0,1.56653976]
[1749465285982,0.99471865,107000.0,106990.0,1.81653976]
[1749465286285,1.02545763,107000.0,106990.0,1.81653976]
[1749465286480,1.02505763,107000.0,106990.0,1.81653976]
[1749465286789,1.02545763,107000.0,106990.0,1.81653976]
[1749465287083,1.02445763,107000.0,106990.0,1.81553976]
[1749465287470,1.00928831,107000.0,106990.0,1.81553976]
[1749465287876,1.00920831,107000.0,106990.0,1.81553976]
[1749465288084,1.00620831,107000.0,106990.0,1.81453976]
[1749465288386,1.00020831,107000.0,106990.0,1.56453976]
[1749465288575,1.00520831,107000.0,106990.0,1.56453976]
[1749465288885,1.00420831,107000.0,106990.0,1.56453976]
[1749465289185,1.00420831,107000.0,106990.0,1.45614725]
[1749465289572,1.19101551,107000.0,106990.0,1.45614725]
[1749465289777,1.00420831,107000.0,106990.0,1.45614725]
[1749465290784,1.00416831,107000.0,106990.0,1.45614725]
[1749465290983,1.00376831,107000.0,106990.0,1.56453976]
[1749465291184,1.00416831,107000.0,106990.0,1.56453976]
[1749465291379,1.00416831,107000.0,106990.0,1.45614725]
[1749465291585,0.41808831,107000.0,106990.0,1.56453976]
[1749465291788,0.41808831,107000.0,106990.0,1.45614725]
[1749465291789,1.00412831,107000.0,106990.0,1.45614725]
[1749465295783,1.00412831,107000.0,106990.0,1.56453976]
[1749465296483,1.00400831,107000.0,106990.0,1.75083976]
[1749465297289,0.41808831,107000.0,106990.0,1.75083976]
[1749465297492,1.00421806,107000.0,106990.0,1.75083976]
[1749465299090,0.53853806,107000.0,106990.0,1.75083976]
[1749465299294,0.95630979,107000.0,106990.0,1.75083976]
[1749465299995,0.95590979,107000.0,106990.0,1.75083976]
[1749465300496,0.95630979,107000.0,106990.0,2.03944156]
[1749465300794,0.9238715,107000.0,106990.0,2.03944156]
[1749465301182,0.3379915,107000.0,106990.0,2.03944156]
[1749465301495,0.42348,107030.0,107020.0,0.1867724]
[1749465301684,0.54307025,107030.0,107020.0,0.85646441]
[1749465301890,1.00867025,107030.0,107020.0,1.69167186]
[1749465302090,1.00867025,107030.0,107020.0,1.87854797]
[1749465302295,1.00907025,107030.0,107020.0,1.87854797]
[1749465302486,0.54347025,107030.0,107020.0,2.16714977]
[1749465302688,1.02407025,107030.0,107020.0,2.16914977]
[1749465303189,1.02107025,107030.0,107020.0,2.16814977]
[1749465303490,1.02107025,107030.0,107020.0,2.26814977]
[1749465303701,1.05446865,107030.0,107020.0,2.26814977]
[1749465303884,0.58886865,107030.0,107020.0,2.26814977]
[1749465304091,1.05438865,107030.0,107020.0,2.26814977]
[1749465304289,1.05038865,107030.0,107020.0,2.15875726]
[1749465304494,1.23674395,107030.0,107020.0,2.24975541]
[1749465304695,1.23714395,107030.0,107020.0,1.1859629]
[1749465304997,1.92838621,107030.0,107020.0,0.82352767]
[1749465305191,2.28053646,107030.0,107020.0,0.82352767]
[1749465305391,2.28918621,107030.0,107020.0,0.53492587]
[1749465306294,2.28053646,107030.0,107020.0,0.53492587]
[1749465306499,2.28918621,107030.0,107020.0,0.53492587]
[1749465306698,3.78918621,107030.0,107020.0,0.53492587]
[1749465306891,3.78918621,107030.0,107020.0,0.43492587]
[1749465307394,3.78918621,107030.0,107020.0,0.29393561]
[1749465311598,2.28918621,107030.0,107020.0,0.29393561]
[1749465312396,2.1807937,107030.0,107020.0,0.48070831]
[1749465312603,2.28918621,107030.0,107020.0,0.48070831]
[1749465313497,2.28918621,107030.0,107020.0,0.29393561]
[1749465313898,2.28918621,107030.0,107020.0,0.48070831]
[1749465314101,2.28918621,107030.0,107020.0,0.29393561]
[1749465314603,2.28918621,107030.0,107020.0,0.48070821]
[1749465317603,2.28918621,107030.0,107020.0,0.29393561]
[1749465322109,2.28918621,107030.0,107020.0,0.19343611]
[1749465322803,2.28918621,107030.0,107020.0,0.09343611]
[1749465323197,2.28918621,107030.0,107020.0,0.07477793]
[1749465323501,2.28918621,107030.0,107020.0,0.17477793]
[1749465323907,2.28918621,107030.0,107020.0,0.07477793]
[1749465323908,1.70382621,107030.0,107020.0,0.07477793]
[1749465324106,2.28878621,107030.0,107020.0,0.17477793]
[1749465324307,2.29278621,107030.0,107020.0,0.27477793]
[1749465325509,2.29274621,107030.0,107020.0,0.37477793]
[1749465326411,2.29230621,107030.0,107020.0,0.27477793]
[1749465326611,2.29230621,107030.0,107020.0,0.37477793]
[1749465326810,3.79270621,107030.0,107020.0,0.37477793]
[1749465327011,2.29270621,107030.0,107020.0,0.37477793]
[1749465327607,3.79270621,107030.0,107020.0,0.37477793]
[1749465329013,3.79270621,107030.0,107020.0,0.27477793]
[1749465329509,3.79270621,107030.0,107020.0,0.37477793]
[1749465330507,3.23762621,107030.0,107020.0,0.56155063]
[1749465330714,3.23762621,107030.0,107020.0,0.75257793]
[1749465330916,3.23722621,107030.0,107020.0,0.75257793]
[1749465331112,3.23762621,107030.0,107020.0,0.75257793]
[1749465331504,3.1292337,107030.0,107020.0,0.75257793]
[1749465331709,3.78222621,107030.0,107020.0,0.75257793]
[1749465332311,3.78222621,107030.0,107020.0,0.93935063]
[1749465332516,3.3037337,107030.0,107020.0,0.96781063]
[1749465332715,2.9429337,107030.0,107020.0,0.96781063]
[1749465332910,2.92736605,107030.0,107020.0,0.96781063]
[1749465333116,2.92776605,107030.0,107020.0,0.96781063]
[1749465333320,2.73406605,107030.0,107020.0,0.97186723]
[1749465333921,2.73398605,107030.0,107020.0,0.97186723]
[1749465334421,1.2253363,107030.0,107020.0,0.97186723]
[1749465334621,1.21373598,107030.0,107020.0,1.76138607]
[1749465335017,1.02658078,107030.0,107020.0,1.76138607]
[1749465335214,1.00574795,107030.0,107020.0,1.86977858]
[1749465335420,1.00534795,107030.0,107020.0,1.95570155]
[1749465336031,1.00530795,107030.0,107020.0,1.92034947]
[1749465336220,1.00570795,107030.0,107020.0,1.92034947]
[1749465336726,1.00566795,107030.0,107020.0,1.92034947]
[1749465337314,0.42142795,107030.0,107020.0,2.12218198]
[1749465337530,1.00526795,107030.0,107020.0,2.22007494]
[1749465337727,1.00566795,107030.0,107020.0,2.22007494]
[1749465337926,0.54090795,107030.0,107020.0,2.22007494]
[1749465338126,1.00566795,107030.0,107020.0,2.22007494]
[1749465338424,0.54090795,107030.0,107020.0,2.22007494]
[1749465338628,0.97182955,107030.0,107020.0,2.22015879]
[1749465338820,0.97222955,107030.0,107020.0,2.22015879]
[1749465339020,0.97182955,107030.0,107020.0,2.22015879]
[1749465339229,0.97222955,107030.0,107020.0,2.22015879]
[1749465339427,0.97182955,107030.0,107020.0,2.22015879]
[1749465340123,0.97222955,107030.0,107020.0,2.22015879]
[1749465341422,0.50750955,107030.0,107020.0,2.47015879]
[1749465341622,0.97214955,107030.0,107020.0,2.47015879]
[1749465342824,0.97214955,107030.0,107020.0,2.09563402]
[1749465343623,0.97206955,107030.0,107020.0,2.09563402]
[1749465344031,0.97166955,107030.0,107020.0,2.09563402]
[1749465344223,0.97206955,107030.0,107020.0,2.09563402]
[1749465345629,0.95690534,107030.0,107020.0,1.84563402]
[1749465346024,0.95690534,107030.0,107020.0,2.03447252]
[1749465347226,0.95690534,107030.0,107020.0,1.92608001]
[1749465347522,0.95690534,107030.0,107020.0,1.73069045]
[1749465347523,1.25205305,107030.0,107020.0,1.73069045]
[1749465347723,1.6480028,107030.0,107020.0,1.35289035]
[1749465347924,1.8458028,107030.0,107020.0,1.35289035]